[Event "*** Titled Tuesday Blitz"]
[Site "Chess.com"]
[Date "2020.04.21"]
[Round "2"]
[White "mamey78"]
[Black "robertofabregas"]
[Result "1-0"]
[WhiteElo "2401"]
[BlackElo "2113"]
[TimeControl "180+1"]
[EndTime "10:17:35 PDT"]
[Termination "mamey78 won by resignation"]

1. e4 {[%clk 0:03:00.9]} 1... c5 {[%clk 0:02:58.9]} 2. Nf3 {[%clk 0:03:00]} 2...
d6 {[%clk 0:02:58.6]} 3. d4 {[%clk 0:02:59.2]} 3... cxd4 {[%clk 0:02:58.8]} 4.
Nxd4 {[%clk 0:03:00.1]} 4... Nf6 {[%clk 0:02:59.2]} 5. Nc3 {[%clk 0:03:00.3]}
5... e6 {[%clk 0:02:58.2]} 6. g4 {[%clk 0:02:58.9]} 6... h6 {[%clk 0:02:57]} 7.
h4 {[%clk 0:02:58.2]} 7... e5 {[%clk 0:02:53.9]} 8. Bb5+ {[%clk 0:02:46.3]} 8...
Bd7 {[%clk 0:02:39]} 9. Bxd7+ {[%clk 0:02:45.3]} 9... Qxd7 {[%clk 0:02:37.5]}
10. Nf5 {[%clk 0:02:43.1]} 10... Nc6 {[%clk 0:02:27.8]} 11. Rg1 {[%clk
0:02:08.8]} 11... a6 {[%clk 0:02:16.3]} 12. Nd5 {[%clk 0:01:55.8]} 12... Nxe4
{[%clk 0:02:09.4]} 13. Nb6 {[%clk 0:01:52.7]} 13... Qd8 {[%clk 0:02:00.2]} 14.
Nxa8 {[%clk 0:01:52.3]} 14... Qxa8 {[%clk 0:01:59.3]} 15. Qd5 {[%clk 0:01:42.2]}
15... g6 {[%clk 0:01:35.7]} 16. Qxe4 {[%clk 0:01:36.9]} 16... gxf5 {[%clk
0:01:35.8]} 17. Qxf5 {[%clk 0:01:29.7]} 17... Nd4 {[%clk 0:01:31.8]} 18. Qe4
{[%clk 0:01:29]} 18... Qc8 {[%clk 0:01:29.8]} 19. c3 {[%clk 0:01:27.2]} 19...
Nc6 {[%clk 0:01:10.1]} 20. Be3 {[%clk 0:01:25.2]} 20... Rg8 {[%clk 0:01:01.4]}
21. O-O-O {[%clk 0:01:22]} 21... Qe6 {[%clk 0:00:58]} 22. Kb1 {[%clk 0:01:19.1]}
22... Be7 {[%clk 0:00:46.7]} 23. g5 {[%clk 0:01:18.2]} 23... hxg5 {[%clk
0:00:45.4]} 24. hxg5 {[%clk 0:01:17.2]} 24... Na5 {[%clk 0:00:44]} 25. f4 {[%clk
0:00:59.5]} 25... exf4 {[%clk 0:00:33.2]} 26. Qa4+ {[%clk 0:00:43.9]} 26... Nc6
{[%clk 0:00:31.9]} 27. Bxf4 {[%clk 0:00:44]} 27... Kd7 {[%clk 0:00:20.1]} 28.
Qc2 {[%clk 0:00:40.1]} 28... b5 {[%clk 0:00:19.3]} 29. Rg2 {[%clk 0:00:36.3]}
29... Rg6 {[%clk 0:00:18.6]} 30. Rgd2 {[%clk 0:00:33.7]} 30... Kc7 {[%clk
0:00:12.7]} 31. Rd5 {[%clk 0:00:32]} 31... Na5 {[%clk 0:00:12.3]} 32. a4 {[%clk
0:00:25.9]} 32... Nc4 {[%clk 0:00:12.6]} 33. axb5 {[%clk 0:00:25.4]} 33... axb5
{[%clk 0:00:12.8]} 34. Rxb5 {[%clk 0:00:24.9]} 34... Kc6 {[%clk 0:00:13.2]} 35.
Qa4 {[%clk 0:00:21.5]} 35... Kc7 {[%clk 0:00:11.1]} 36. Qa7+ {[%clk 0:00:20]}
36... Kd8 {[%clk 0:00:11.6]} 37. Rb8+ {[%clk 0:00:18.9]} 1-0

[Event "*** Titled Tuesday Blitz"]
[Site "Chess.com"]
[Date "2020.04.21"]
[Round "2"]
[White "Szparu"]
[Black "exoticprincess"]
[Result "0-1"]
[WhiteElo "2578"]
[BlackElo "2854"]
[TimeControl "180+1"]
[EndTime "10:17:36 PDT"]
[Termination "exoticprincess won on time"]

1. e4 {[%clk 0:03:00.9]} 1... c6 {[%clk 0:03:00.9]} 2. d4 {[%clk 0:02:59.9]}
2... d5 {[%clk 0:03:01.8]} 3. Nc3 {[%clk 0:03:00.4]} 3... dxe4 {[%clk
0:03:01.4]} 4. Nxe4 {[%clk 0:03:00.7]} 4... Nf6 {[%clk 0:03:02.3]} 5. Nxf6+
{[%clk 0:03:00.3]} 5... exf6 {[%clk 0:03:03.2]} 6. c3 {[%clk 0:02:59.6]} 6...
Bd6 {[%clk 0:03:03.6]} 7. Bd3 {[%clk 0:02:59.7]} 7... O-O {[%clk 0:03:03.5]} 8.
Qc2 {[%clk 0:02:59.9]} 8... Re8+ {[%clk 0:03:04.1]} 9. Ne2 {[%clk 0:02:59.6]}
9... h5 {[%clk 0:03:04.5]} 10. Be3 {[%clk 0:02:58.3]} 10... Nd7 {[%clk
0:03:03.8]} 11. O-O-O {[%clk 0:02:56.8]} 11... Nf8 {[%clk 0:03:04.1]} 12. c4
{[%clk 0:02:55.8]} 12... Bg4 {[%clk 0:02:58.7]} 13. h3 {[%clk 0:02:48.5]} 13...
Bxe2 {[%clk 0:02:58.6]} 14. Qxe2 {[%clk 0:02:32.2]} 14... Bf4 {[%clk 0:02:56]}
15. Qf3 {[%clk 0:02:29.1]} 15... Bxe3+ {[%clk 0:02:54.3]} 16. fxe3 {[%clk
0:02:28.5]} 16... h4 {[%clk 0:02:49.8]} 17. Rhe1 {[%clk 0:02:27.8]} 17... Qa5
{[%clk 0:02:47.2]} 18. Kb1 {[%clk 0:02:22.9]} 18... Rad8 {[%clk 0:02:47.1]} 19.
Qf2 {[%clk 0:02:05.9]} 19... Qg5 {[%clk 0:02:44.1]} 20. e4 {[%clk 0:01:45.7]}
20... Ne6 {[%clk 0:02:43.4]} 21. d5 {[%clk 0:01:41.6]} 21... Nf4 {[%clk
0:02:43.5]} 22. Bf1 {[%clk 0:01:41.1]} 22... f5 {[%clk 0:02:28.8]} 23. exf5
{[%clk 0:01:22.8]} 23... Rxe1 {[%clk 0:02:28.2]} 24. Rxe1 {[%clk 0:01:10.7]}
24... cxd5 {[%clk 0:02:26]} 25. cxd5 {[%clk 0:01:09.8]} 25... Qxf5+ {[%clk
0:02:25.1]} 26. Ka1 {[%clk 0:01:08.9]} 26... Qg5 {[%clk 0:02:18]} 27. Qxa7
{[%clk 0:01:01.8]} 27... Qxd5 {[%clk 0:02:18]} 28. Qa4 {[%clk 0:00:45.5]} 28...
Qd2 {[%clk 0:02:10.1]} 29. Rb1 {[%clk 0:00:34.8]} 29... Rc8 {[%clk 0:01:52.8]}
30. a3 {[%clk 0:00:29.8]} 30... g6 {[%clk 0:01:50.8]} 31. Qb3 {[%clk 0:00:25.7]}
31... Rc1 {[%clk 0:01:48.4]} 32. Bc4 {[%clk 0:00:22]} 32... Rxb1+ {[%clk
0:01:47.1]} 33. Kxb1 {[%clk 0:00:22.2]} 33... Qxg2 {[%clk 0:01:43]} 34. Bxf7+
{[%clk 0:00:21.8]} 34... Kg7 {[%clk 0:01:43.5]} 35. Bc4 {[%clk 0:00:18.6]} 35...
Nxh3 {[%clk 0:01:41.3]} 36. Bd5 {[%clk 0:00:18.1]} 36... Qf1+ {[%clk 0:01:39.4]}
37. Ka2 {[%clk 0:00:18.4]} 37... Ng5 {[%clk 0:01:35.6]} 38. Qc3+ {[%clk
0:00:15.2]} 38... Kh7 {[%clk 0:01:34.3]} 39. Qc7+ {[%clk 0:00:14.7]} 39... Kh6
{[%clk 0:01:34.9]} 40. Qxb7 {[%clk 0:00:08.3]} 40... h3 {[%clk 0:01:35]} 41. Qb8
{[%clk 0:00:07.5]} 41... Qf5 {[%clk 0:01:28]} 42. Qh8+ {[%clk 0:00:06.7]} 42...
Nh7 {[%clk 0:01:28.2]} 43. Qd4 {[%clk 0:00:07.1]} 43... Nf6 {[%clk 0:01:24.4]}
44. Bb3 {[%clk 0:00:06]} 44... g5 {[%clk 0:01:22.6]} 45. Ba4 {[%clk 0:00:03.1]}
45... Qd5+ {[%clk 0:01:21.6]} 46. Qxd5 {[%clk 0:00:03.5]} 46... Nxd5 {[%clk
0:01:22.5]} 47. Bc6 {[%clk 0:00:04.2]} 47... g4 {[%clk 0:01:03.1]} 48. Bxd5
{[%clk 0:00:03]} 48... g3 {[%clk 0:01:03.5]} 0-1

[Event "*** Titled Tuesday Blitz"]
[Site "Chess.com"]
[Date "2020.04.21"]
[Round "2"]
[White "agrigo3"]
[Black "wnstop"]
[Result "0-1"]
[WhiteElo "2303"]
[BlackElo "2587"]
[TimeControl "180+1"]
[EndTime "10:17:36 PDT"]
[Termination "wnstop won on time"]

1. Nf3 {[%clk 0:03:00.9]} 1... Nf6 {[%clk 0:02:58.9]} 2. g3 {[%clk 0:03:00.5]}
2... d5 {[%clk 0:02:57.1]} 3. Bg2 {[%clk 0:03:00.8]} 3... e6 {[%clk 0:02:54.6]}
4. O-O {[%clk 0:03:01.1]} 4... Be7 {[%clk 0:02:55.2]} 5. d4 {[%clk 0:02:57.4]}
5... O-O {[%clk 0:02:55.5]} 6. c4 {[%clk 0:02:57.3]} 6... dxc4 {[%clk
0:02:56.4]} 7. Ne5 {[%clk 0:02:57.3]} 7... Nc6 {[%clk 0:02:54.6]} 8. Nxc6 {[%clk
0:02:55.5]} 8... bxc6 {[%clk 0:02:54.2]} 9. e3 {[%clk 0:02:52.7]} 9... Rb8
{[%clk 0:02:40.1]} 10. Qc2 {[%clk 0:02:39.7]} 10... Ba6 {[%clk 0:02:24.3]} 11.
Rd1 {[%clk 0:02:39.2]} 11... Qc8 {[%clk 0:02:16]} 12. Nd2 {[%clk 0:02:34.2]}
12... c5 {[%clk 0:02:14.6]} 13. Nxc4 {[%clk 0:02:32]} 13... cxd4 {[%clk
0:02:11.7]} 14. Rxd4 {[%clk 0:02:27.3]} 14... c5 {[%clk 0:02:09.3]} 15. Rd1
{[%clk 0:02:24.9]} 15... Nd5 {[%clk 0:02:08.7]} 16. Bd2 {[%clk 0:01:27.4]} 16...
Bf6 {[%clk 0:01:51]} 17. Rab1 {[%clk 0:01:23.4]} 17... Nb4 {[%clk 0:01:47.7]}
18. Bxb4 {[%clk 0:01:20.2]} 18... cxb4 {[%clk 0:01:47.4]} 19. b3 {[%clk
0:00:59.1]} 19... Rb5 {[%clk 0:01:44.7]} 20. Be4 {[%clk 0:00:54.9]} 20... g6
{[%clk 0:01:41.9]} 21. Nd6 {[%clk 0:00:50.9]} 21... Qxc2 {[%clk 0:01:38.1]} 22.
Bxc2 {[%clk 0:00:50.7]} 22... Ra5 {[%clk 0:01:29.3]} 23. Ne4 {[%clk 0:00:43.6]}
23... Be5 {[%clk 0:01:23.6]} 24. Bd3 {[%clk 0:00:19]} 24... Bb7 {[%clk 0:01:15]}
25. Nd2 {[%clk 0:00:15.6]} 25... Rxa2 {[%clk 0:01:14.5]} 26. Nc4 {[%clk
0:00:15.5]} 26... Bc3 {[%clk 0:01:14.3]} 27. Rdc1 {[%clk 0:00:11.7]} 27... Rd8
{[%clk 0:01:11.2]} 28. Rd1 {[%clk 0:00:11.7]} 28... Bf3 {[%clk 0:01:10.4]} 29.
Be2 {[%clk 0:00:09.8]} 29... Rxd1+ {[%clk 0:01:06.3]} 30. Bxd1 {[%clk
0:00:09.8]} 30... Be4 {[%clk 0:01:05.9]} 31. Rc1 {[%clk 0:00:08.2]} 31... Be1
{[%clk 0:00:58.3]} 32. f3 {[%clk 0:00:04.9]} 32... Bd3 {[%clk 0:00:50.8]} 33. e4
{[%clk 0:00:04]} 33... Bf2+ {[%clk 0:00:38.7]} 34. Kh1 {[%clk 0:00:03.7]} 34...
Bd4 {[%clk 0:00:35.3]} 35. Nd6 {[%clk 0:00:02.4]} 35... Kg7 {[%clk 0:00:21]} 0-1

[Event "*** Titled Tuesday Blitz"]
[Site "Chess.com"]
[Date "2020.04.21"]
[Round "2"]
[White "TV27"]
[Black "elisak43"]
[Result "1-0"]
[WhiteElo "2129"]
[BlackElo "2385"]
[TimeControl "180+1"]
[EndTime "10:17:36 PDT"]
[Termination "TV27 won on time"]

1. c4 {[%clk 0:02:58.1]} 1... e5 {[%clk 0:02:57.4]} 2. Nc3 {[%clk 0:02:56.8]}
2... Nf6 {[%clk 0:02:57.4]} 3. g3 {[%clk 0:02:56.3]} 3... d5 {[%clk 0:02:53.5]}
4. cxd5 {[%clk 0:02:55.3]} 4... Nxd5 {[%clk 0:02:54.4]} 5. Bg2 {[%clk
0:02:54.8]} 5... c6 {[%clk 0:02:54.6]} 6. Nf3 {[%clk 0:02:49.7]} 6... Nxc3
{[%clk 0:02:51.1]} 7. bxc3 {[%clk 0:02:48.2]} 7... Bd6 {[%clk 0:02:51.4]} 8. e4
{[%clk 0:02:44.2]} 8... O-O {[%clk 0:02:51.2]} 9. O-O {[%clk 0:02:43.2]} 9...
Nd7 {[%clk 0:02:43.5]} 10. Qc2 {[%clk 0:02:41]} 10... c5 {[%clk 0:02:19.6]} 11.
a4 {[%clk 0:02:34.3]} 11... c4 {[%clk 0:02:15.3]} 12. d4 {[%clk 0:02:22.7]}
12... cxd3 {[%clk 0:02:12.7]} 13. Qxd3 {[%clk 0:02:21.9]} 13... Nc5 {[%clk
0:02:13]} 14. Qc2 {[%clk 0:02:20.9]} 14... Qc7 {[%clk 0:02:09.5]} 15. Be3 {[%clk
0:02:15.9]} 15... Be6 {[%clk 0:02:00.6]} 16. Rab1 {[%clk 0:02:02.2]} 16... Rac8
{[%clk 0:01:52.4]} 17. Rfd1 {[%clk 0:01:52.7]} 17... Rfd8 {[%clk 0:01:45.8]} 18.
Bf1 {[%clk 0:01:36.8]} 18... f6 {[%clk 0:01:38.8]} 19. Nd2 {[%clk 0:01:27.4]}
19... Bf8 {[%clk 0:01:14.3]} 20. Bc4 {[%clk 0:01:19.5]} 20... Bxc4 {[%clk
0:00:41.3]} 21. Nxc4 {[%clk 0:01:18.9]} 21... b6 {[%clk 0:00:27]} 22. Rxd8
{[%clk 0:01:09.8]} 22... Rxd8 {[%clk 0:00:26.3]} 23. a5 {[%clk 0:01:08.4]} 23...
Nd7 {[%clk 0:00:13.3]} 24. Qa2 {[%clk 0:01:01.9]} 24... Kh8 {[%clk 0:00:10.9]}
25. axb6 {[%clk 0:01:00.6]} 25... axb6 {[%clk 0:00:11.3]} 26. Nxb6 {[%clk
0:00:57.5]} 26... Qxc3 {[%clk 0:00:07.5]} 27. Nd5 {[%clk 0:00:55.7]} 27... Qc8
{[%clk 0:00:06.1]} 28. Rc1 {[%clk 0:00:53.6]} 28... Qa8 {[%clk 0:00:05.7]} 29.
Qe2 {[%clk 0:00:50.7]} 29... h6 {[%clk 0:00:04.4]} 30. Qb5 {[%clk 0:00:41.9]}
30... Kh7 {[%clk 0:00:04.4]} 31. Qe2 {[%clk 0:00:36.7]} 31... Qa3 {[%clk
0:00:02.6]} 32. Qg4 {[%clk 0:00:35.1]} 32... Qb2 {[%clk 0:00:01.8]} 33. Qf5+
{[%clk 0:00:33.2]} 33... g6 {[%clk 0:00:01.4]} 34. Qe6 {[%clk 0:00:31.8]} 34...
Bg7 {[%clk 0:00:01.6]} 35. Qe7 {[%clk 0:00:29.3]} 35... Qb8 {[%clk 0:00:01.7]}
36. h4 {[%clk 0:00:25.3]} 36... Qc7 {[%clk 0:00:02.1]} 37. Nxc7 {[%clk
0:00:24.2]} 1-0

[Event "*** Titled Tuesday Blitz"]
[Site "Chess.com"]
[Date "2020.04.21"]
[Round "2"]
[White "WonderChampion"]
[Black "albano87"]
[Result "0-1"]
[WhiteElo "1783"]
[BlackElo "2365"]
[TimeControl "180+1"]
[EndTime "10:17:36 PDT"]
[Termination "albano87 won by checkmate"]

1. e4 {[%clk 0:02:30.4]} 1... c5 {[%clk 0:02:58.4]} 2. Nf3 {[%clk 0:02:28.8]}
2... Nc6 {[%clk 0:02:56.6]} 3. Bb5 {[%clk 0:02:27.6]} 3... d6 {[%clk 0:02:54.9]}
4. Bxc6+ {[%clk 0:02:25.9]} 4... bxc6 {[%clk 0:02:50.9]} 5. O-O {[%clk
0:02:26.3]} 5... Nf6 {[%clk 0:02:50.5]} 6. Re1 {[%clk 0:02:25.4]} 6... g6 {[%clk
0:02:50.1]} 7. c3 {[%clk 0:02:24.9]} 7... Bg7 {[%clk 0:02:49.2]} 8. d4 {[%clk
0:02:25.2]} 8... cxd4 {[%clk 0:02:48.6]} 9. cxd4 {[%clk 0:02:25.8]} 9... O-O
{[%clk 0:02:48.9]} 10. Nc3 {[%clk 0:02:25.4]} 10... Bg4 {[%clk 0:02:48.7]} 11.
Be3 {[%clk 0:02:23]} 11... Rb8 {[%clk 0:02:47.5]} 12. Rb1 {[%clk 0:02:20.7]}
12... d5 {[%clk 0:02:47.4]} 13. e5 {[%clk 0:02:19.8]} 13... Ne4 {[%clk
0:02:47.5]} 14. h3 {[%clk 0:02:15.1]} 14... Bxf3 {[%clk 0:02:42.5]} 15. Qxf3
{[%clk 0:02:13.4]} 15... Nxc3 {[%clk 0:02:39.1]} 16. bxc3 {[%clk 0:02:12.6]}
16... Qa5 {[%clk 0:02:40]} 17. Bf4 {[%clk 0:01:57.1]} 17... Rxb1 {[%clk
0:02:33.6]} 18. Rxb1 {[%clk 0:01:55.5]} 18... Qxa2 {[%clk 0:02:32.5]} 19. Rb7
{[%clk 0:01:56]} 19... e6 {[%clk 0:02:32]} 20. Qg4 {[%clk 0:01:42.6]} 20... Qa1+
{[%clk 0:02:19.8]} 21. Kh2 {[%clk 0:01:41.8]} 21... Qxc3 {[%clk 0:02:18.8]} 22.
Be3 {[%clk 0:01:31]} 22... c5 {[%clk 0:02:17.1]} 23. Rxa7 {[%clk 0:01:23.4]}
23... cxd4 {[%clk 0:01:38.1]} 24. Bxd4 {[%clk 0:01:18.6]} 24... Bxe5+ {[%clk
0:01:39]} 25. Bxe5 {[%clk 0:01:17.6]} 25... Qxe5+ {[%clk 0:01:38.3]} 26. f4
{[%clk 0:01:13.5]} 26... Qe3 {[%clk 0:01:31.4]} 27. Ra1 {[%clk 0:01:06.4]} 27...
d4 {[%clk 0:01:30.4]} 28. Qh4 {[%clk 0:01:04.3]} 28... d3 {[%clk 0:01:29.9]} 29.
Re1 {[%clk 0:01:04]} 29... Qd4 {[%clk 0:01:29.9]} 30. Qg4 {[%clk 0:01:00.8]}
30... d2 {[%clk 0:01:26]} 31. Rd1 {[%clk 0:01:00.4]} 31... Rd8 {[%clk
0:01:26.7]} 32. h4 {[%clk 0:00:57.7]} 32... e5 {[%clk 0:01:26.4]} 33. g3 {[%clk
0:00:50.1]} 33... Qf2+ {[%clk 0:01:25]} 34. Kh3 {[%clk 0:00:50.6]} 34... exf4
{[%clk 0:01:21.6]} 35. Qxf4 {[%clk 0:00:50.8]} 35... Qxf4 {[%clk 0:01:17.9]} 36.
gxf4 {[%clk 0:00:50.6]} 36... Rd3+ {[%clk 0:01:18.2]} 37. Kg2 {[%clk 0:00:49.2]}
37... Kg7 {[%clk 0:01:18.2]} 38. Kf2 {[%clk 0:00:46.8]} 38... Kf6 {[%clk
0:01:18.4]} 39. Ke2 {[%clk 0:00:46]} 39... Rd7 {[%clk 0:01:16.3]} 40. Ke3 {[%clk
0:00:44.4]} 40... Kf5 {[%clk 0:01:15.4]} 41. Kf3 {[%clk 0:00:42]} 41... h5
{[%clk 0:01:15.2]} 42. Ke3 {[%clk 0:00:40.9]} 42... Kg4 {[%clk 0:01:15.4]} 43.
Ke4 {[%clk 0:00:39.6]} 43... Re7+ {[%clk 0:01:14.7]} 44. Kd3 {[%clk 0:00:38.7]}
44... Kxh4 {[%clk 0:01:15.1]} 45. Rxd2 {[%clk 0:00:36.4]} 45... Rd7+ {[%clk
0:01:14.2]} 46. Ke3 {[%clk 0:00:37.1]} 46... Rxd2 {[%clk 0:01:15.1]} 47. Kxd2
{[%clk 0:00:38]} 47... Kg3 {[%clk 0:01:15.9]} 48. Ke3 {[%clk 0:00:38.1]} 48...
h4 {[%clk 0:01:16.8]} 49. Ke4 {[%clk 0:00:38.7]} 49... h3 {[%clk 0:01:17]} 50.
f5 {[%clk 0:00:38.8]} 50... gxf5+ {[%clk 0:01:16.8]} 51. Kxf5 {[%clk 0:00:39.7]}
51... h2 {[%clk 0:01:17.7]} 52. Kf6 {[%clk 0:00:40.6]} 52... h1=Q {[%clk
0:01:17]} 53. Kxf7 {[%clk 0:00:41.5]} 53... Qc6 {[%clk 0:01:17.4]} 54. Ke7
{[%clk 0:00:42.4]} 54... Kf4 {[%clk 0:01:10.7]} 55. Kf8 {[%clk 0:00:43.3]} 55...
Kf5 {[%clk 0:01:11.6]} 56. Kf7 {[%clk 0:00:44]} 56... Qc7+ {[%clk 0:01:11.3]}
57. Kf8 {[%clk 0:00:43.7]} 57... Kf6 {[%clk 0:01:10.6]} 58. Kg8 {[%clk
0:00:44.6]} 58... Qg7# {[%clk 0:01:10.6]} 0-1

[Event "*** Titled Tuesday Blitz"]
[Site "Chess.com"]
[Date "2020.04.21"]
[Round "2"]
[White "Belka1989"]
[Black "DmitryMaximov"]
[Result "1-0"]
[WhiteElo "2430"]
[BlackElo "2632"]
[TimeControl "180+1"]
[EndTime "10:17:37 PDT"]
[Termination "Belka1989 won by resignation"]

1. e4 {[%clk 0:03:00.9]} 1... c5 {[%clk 0:02:59.7]} 2. Nf3 {[%clk 0:03:01.2]}
2... d6 {[%clk 0:03:00.3]} 3. d4 {[%clk 0:03:00.5]} 3... cxd4 {[%clk 0:03:00.4]}
4. Nxd4 {[%clk 0:03:01.4]} 4... Nf6 {[%clk 0:03:00.7]} 5. f3 {[%clk 0:03:02]}
5... g6 {[%clk 0:02:59.8]} 6. c4 {[%clk 0:03:02.1]} 6... Bg7 {[%clk 0:03:00.2]}
7. Nc3 {[%clk 0:03:01.8]} 7... O-O {[%clk 0:03:00.6]} 8. Be3 {[%clk 0:03:02.5]}
8... Nbd7 {[%clk 0:02:58.8]} 9. Be2 {[%clk 0:03:02.8]} 9... a6 {[%clk
0:02:58.2]} 10. O-O {[%clk 0:03:02.9]} 10... Ne5 {[%clk 0:02:56.5]} 11. Qd2
{[%clk 0:03:00.6]} 11... Bd7 {[%clk 0:02:55.8]} 12. Rac1 {[%clk 0:03:00.7]}
12... Re8 {[%clk 0:02:52.3]} 13. Rfd1 {[%clk 0:02:42.1]} 13... Qa5 {[%clk
0:02:51.5]} 14. Nb3 {[%clk 0:02:34.2]} 14... Qd8 {[%clk 0:02:41]} 15. Nd5 {[%clk
0:02:07.6]} 15... Nxd5 {[%clk 0:02:40.4]} 16. cxd5 {[%clk 0:02:08.5]} 16... f5
{[%clk 0:02:31.6]} 17. Qb4 {[%clk 0:02:02.1]} 17... fxe4 {[%clk 0:02:27.4]} 18.
fxe4 {[%clk 0:02:03]} 18... Bg4 {[%clk 0:02:14.9]} 19. Bxg4 {[%clk 0:01:26.7]}
19... Nxg4 {[%clk 0:02:14.4]} 20. Bd4 {[%clk 0:01:26.2]} 20... Bh6 {[%clk
0:01:43.7]} 21. Rc3 {[%clk 0:00:47.5]} 21... a5 {[%clk 0:01:43.5]} 22. Qc4
{[%clk 0:00:44.9]} 22... Rf8 {[%clk 0:01:34.5]} 23. h3 {[%clk 0:00:38.7]} 23...
Nf6 {[%clk 0:01:29.5]} 24. Bxf6 {[%clk 0:00:34.4]} 24... Rxf6 {[%clk 0:01:28.9]}
25. Nd4 {[%clk 0:00:32.8]} 25... Qb6 {[%clk 0:01:24.3]} 26. Rc2 {[%clk
0:00:25.4]} 26... Raf8 {[%clk 0:01:20.8]} 27. Kh1 {[%clk 0:00:19.9]} 27... Kh8
{[%clk 0:01:17.8]} 28. Ne6 {[%clk 0:00:18.6]} 28... Rg8 {[%clk 0:01:09.5]} 29.
Qc3 {[%clk 0:00:16.4]} 29... Bg7 {[%clk 0:01:00]} 30. Nxg7 {[%clk 0:00:14.4]}
30... Kxg7 {[%clk 0:00:59.9]} 31. e5 {[%clk 0:00:15]} 31... dxe5 {[%clk
0:00:50.7]} 32. Qxe5 {[%clk 0:00:15.9]} 32... Kf7 {[%clk 0:00:36.7]} 33. Rc7
{[%clk 0:00:16]} 33... Re8 {[%clk 0:00:36.3]} 34. d6 {[%clk 0:00:14.9]} 34...
Qf2 {[%clk 0:00:09.9]} 35. Rxe7+ {[%clk 0:00:13.4]} 35... Rxe7 {[%clk 0:00:10]}
36. Qxe7+ {[%clk 0:00:14.3]} 36... Kg8 {[%clk 0:00:10.5]} 37. d7 {[%clk
0:00:12.4]} 1-0

[Event "*** Titled Tuesday Blitz"]
[Site "Chess.com"]
[Date "2020.04.21"]
[Round "2"]
[White "KingChess345"]
[Black "Tonychess32"]
[Result "0-1"]
[WhiteElo "2087"]
[BlackElo "2624"]
[TimeControl "180+1"]
[EndTime "10:17:41 PDT"]
[Termination "Tonychess32 won by checkmate"]

1. d4 {[%clk 0:03:00.9]} 1... Nf6 {[%clk 0:02:59.4]} 2. Nf3 {[%clk 0:03:01.3]}
2... e6 {[%clk 0:02:59.1]} 3. g3 {[%clk 0:03:01.7]} 3... d5 {[%clk 0:02:59.1]}
4. Bg2 {[%clk 0:03:02.2]} 4... Be7 {[%clk 0:02:58.9]} 5. O-O {[%clk 0:03:02.9]}
5... O-O {[%clk 0:02:58.7]} 6. c4 {[%clk 0:03:03.4]} 6... dxc4 {[%clk
0:02:56.4]} 7. Qc2 {[%clk 0:03:03.9]} 7... a6 {[%clk 0:02:54.4]} 8. Qxc4 {[%clk
0:03:04]} 8... Bd7 {[%clk 0:02:54.7]} 9. Ne5 {[%clk 0:02:58.8]} 9... Bb5 {[%clk
0:02:51.3]} 10. Qc2 {[%clk 0:02:57.5]} 10... Nc6 {[%clk 0:02:51]} 11. Nxc6
{[%clk 0:02:37.6]} 11... Bxc6 {[%clk 0:02:50.6]} 12. Bxc6 {[%clk 0:02:37.6]}
12... bxc6 {[%clk 0:02:50.5]} 13. Rd1 {[%clk 0:02:34]} 13... Qd5 {[%clk
0:02:50.4]} 14. Nc3 {[%clk 0:02:31.9]} 14... Qh5 {[%clk 0:02:49.9]} 15. Kg2
{[%clk 0:02:08]} 15... Rfd8 {[%clk 0:02:43]} 16. Bf4 {[%clk 0:02:04.9]} 16...
Bd6 {[%clk 0:02:40.3]} 17. Be3 {[%clk 0:01:42.3]} 17... Ng4 {[%clk 0:02:37.8]}
18. h3 {[%clk 0:01:39.3]} 18... Nxe3+ {[%clk 0:02:35.5]} 19. fxe3 {[%clk
0:01:40.2]} 19... Qg5 {[%clk 0:02:33.7]} 20. Ne4 {[%clk 0:01:30.7]} 20... Qd5
{[%clk 0:02:26.2]} 21. Kh2 {[%clk 0:01:16.5]} 21... f5 {[%clk 0:02:22.1]} 22.
Nxd6 {[%clk 0:01:11]} 22... cxd6 {[%clk 0:02:21.7]} 23. Qb3 {[%clk 0:01:04.4]}
23... Qxb3 {[%clk 0:02:18.5]} 24. axb3 {[%clk 0:01:05.3]} 24... Rdb8 {[%clk
0:02:18.9]} 25. Ra3 {[%clk 0:00:57.6]} 25... Rb6 {[%clk 0:02:14.3]} 26. Rc1
{[%clk 0:00:57.7]} 26... Kf7 {[%clk 0:02:13.4]} 27. Kg2 {[%clk 0:00:56.8]} 27...
Ke7 {[%clk 0:02:13.7]} 28. Kf3 {[%clk 0:00:57.2]} 28... Kd7 {[%clk 0:02:13.6]}
29. e4 {[%clk 0:00:57.2]} 29... g6 {[%clk 0:02:01.7]} 30. exf5 {[%clk 0:00:49]}
30... gxf5 {[%clk 0:02:01.6]} 31. e4 {[%clk 0:00:40.8]} 31... Rab8 {[%clk
0:01:53.8]} 32. Rc3 {[%clk 0:00:39.9]} 32... Rf8 {[%clk 0:01:45.3]} 33. exf5
{[%clk 0:00:35.4]} 33... Rxf5+ {[%clk 0:01:46.2]} 34. Ke4 {[%clk 0:00:34.2]}
34... d5+ {[%clk 0:01:38.2]} 35. Ke3 {[%clk 0:00:31.3]} 35... e5 {[%clk
0:01:32.5]} 36. dxe5 {[%clk 0:00:22.9]} 36... Rxe5+ {[%clk 0:01:32.6]} 37. Kd2
{[%clk 0:00:20.6]} 37... d4 {[%clk 0:01:19.5]} 38. Rd3 {[%clk 0:00:18]} 38... c5
{[%clk 0:01:19.9]} 39. Ra5 {[%clk 0:00:16.6]} 39... Rbe6 {[%clk 0:01:16.4]} 40.
b4 {[%clk 0:00:15.2]} 40... Re2+ {[%clk 0:01:15]} 41. Kc1 {[%clk 0:00:15.6]}
41... Re1+ {[%clk 0:01:07.6]} 42. Kc2 {[%clk 0:00:15.5]} 42... R1e2+ {[%clk
0:00:57.9]} 43. Kb3 {[%clk 0:00:15.4]} 43... R2e3 {[%clk 0:00:51.7]} 44. Rxe3
{[%clk 0:00:14.8]} 44... dxe3 {[%clk 0:00:52.1]} 45. Kc4 {[%clk 0:00:15.5]}
45... e2 {[%clk 0:00:51.7]} 46. Ra1 {[%clk 0:00:13]} 46... e1=Q {[%clk 0:00:52]}
47. Rxe1 {[%clk 0:00:13.5]} 47... Rxe1 {[%clk 0:00:52.9]} 48. bxc5 {[%clk
0:00:14.3]} 48... Kc6 {[%clk 0:00:53.1]} 49. b4 {[%clk 0:00:13.4]} 49... Re3
{[%clk 0:00:53.4]} 50. g4 {[%clk 0:00:12.6]} 50... Rxh3 {[%clk 0:00:52.9]} 51.
b5+ {[%clk 0:00:13.5]} 51... axb5+ {[%clk 0:00:52.6]} 52. Kb4 {[%clk 0:00:14.4]}
52... Rh4 {[%clk 0:00:49.8]} 53. Ka5 {[%clk 0:00:14.4]} 53... Kxc5 {[%clk
0:00:47.6]} 54. Ka6 {[%clk 0:00:15.3]} 54... Rxg4 {[%clk 0:00:47.3]} 55. Ka5
{[%clk 0:00:14.9]} 55... Ra4# {[%clk 0:00:46.5]} 0-1